[Event "FIDE WCCC Girls-10 2024"]
[Site "Montesilvano"]
[Date "2024.11.24"]
[Round "9.13"]
[White "Shtepa, Liubov"]
[Black "Jaksa, Ema"]
[Result "1/2-1/2"]
[Annotator "NA RC"]
[ECO "C57"]
[WhiteElo "1615"]
[BlackElo "1635"]
[PlyCount "143"]
[EventDate "2024.11.18"]
[EventType "swiss"]
[EventCountry "ITA"]
[SourceTitle "playchess.com"]
[Source "ChessBase"]
[SourceQuality "1"]
[TimeControl "5400+30"]

1. e4 {[%emt 0:00:02]} e5 {[%emt 0:00:15]} 2. Nf3 {[%emt 0:00:03]} Nc6 {[%emt 0:00:21]} 3. Bc4 {[%emt 0:00:04]} Nf6 {[%emt 0:00:53]} 4. Ng5 {[%emt 0:00:04]} d5 {[%emt 0:01:11]} 5. exd5 {[%emt 0:00:08]} b5 {[%emt 0:00:41]} 6. Bf1 {[%emt 0:00:10]} Nxd5 {[%emt 0:00:42]} 7. Bxb5 {[%emt 0:00:32]} Bb7 {[%emt 0:00:43]} 8. d4 {[%emt 0:00:39]} exd4 {[%emt 0:00:29]} 9. O-O {[%emt 0:00:22]} Be7 {[%emt 0:01:06]} 10. Qh5 {[%emt 0:00:28]} g6 {[%emt 0:00:27]} 11. Qh6 {[%emt 0:00:13]} Qd7 {[%emt 0:01:14]} 12. Re1 {[%emt 0:00:13]} O-O-O {[%emt 0:00:31]} 13. Nxf7 {[%emt 0:23:45]} Bb4 {[%emt 0:01:36]} 14. Nxd8 {[%emt 0:01:50]} Bxe1 {[%emt 0:00:06]} 15. Nxb7 {[%emt 0:00:29]} Kxb7 {[%emt 0:01:19]} 16. Bd2 {[%emt 0:03:06]} Re8 {[%emt 0:20:57]} 17. Na3 {[%emt 0:00:45]} Bxd2 {[%emt 0:01:46]} 18. Qxd2 {[%emt 0:00:28]} Qe6 {[%emt 0:17:00]} 19. Bxc6+ {[%emt 0:00:55]} Kxc6 {[%emt 0:00:30]} 20. h3 {[%emt 0:01:06]} Qe4 {[%emt 0:07:59]} 21. Qa5 {[%emt 0:01:21]} Nf4 {[%emt 0:11:02]} 22. Qb5+ {[%emt 0:01:34]} Kd6 {[%emt 0:00:12]} 23. Nc4+ {[%emt 0:00:20]} Ke7 {[%emt 0:00:44]} 24. Qe5+ {[%emt 0:01:01]} Qxe5 {[%emt 0:00:23]} 25. Nxe5 {[%emt 0:00:07]} Kd6 {[%emt 0:01:07]} 26. Nf3 {[%emt 0:01:12]} c5 {[%emt 0:03:04]} 27. Rd1 {[%emt 0:02:04]} Kd5 {[%emt 0:01:39]} 28. g3 {[%emt 0:01:19]} Ne6 {[%emt 0:03:41]} 29. c3 {[%emt 0:02:22]} a5 {[%emt 0:02:27]} 30. b3 {[%emt 0:05:03]} a4 {[%emt 0:01:41]} 31. b4 {[%emt 0:01:26]} cxb4 {[%emt 0:01:20]} 32. Nxd4 {[%emt 0:00:42]} Kc4 {[%emt 0:01:40]} 33. Nxe6 {[%emt 0:00:14]} Rxe6 {[%emt 0:00:06]} 34. cxb4 {[%emt 0:00:05]} Kxb4 {[%emt 0:00:12]} 35. Kf1 {[%emt 0:01:08]} Ka3 {[%emt 0:01:10]} 36. Rd2 {[%emt 0:00:07]} Rb6 {[%emt 0:00:17]} 37. f4 {[%emt 0:00:25]} Rb2 {[%emt 0:01:15]} 38. Rxb2 {[%emt 0:00:05]} Kxb2 {[%emt 0:00:09]} 39. g4 {[%emt 0:00:02]} Kxa2 {[%emt 0:00:59]} 40. f5 {[%emt 0:00:05]} gxf5 {[%emt 0:01:19]} 41. gxf5 {[%emt 0:00:06]} a3 {[%emt 0:01:19]} 42. f6 {[%emt 0:00:06]} Kb3 {[%emt 0:01:56]} 43. f7 {[%emt 0:00:09]} a2 {[%emt 0:00:03]} 44. f8=Q {[%emt 0:00:07]} a1=Q+ {[%emt 0:00:08]} 45. Kg2 {[%emt 0:00:18]} Qb2+ {[%emt 0:01:09]} 46. Kg3 {[%emt 0:00:08]} Qc3+ {[%emt 0:01:05]} 47. Qf3 {[%emt 0:02:01]} Qxf3+ {[%emt 0:00:11]} 48. Kxf3 {[%emt 0:00:08]} Kc4 {[%emt 0:00:17]} 49. Ke4 {[%emt 0:00:07]} Kc5 {[%emt 0:00:25]} 50. Ke5 {[%emt 0:00:06]} h6 {[%emt 0:01:08]} 51. h4 {[%emt 0:00:11]} h5 {[%emt 0:00:07]} 52. Ke6 {[%emt 0:00:19]} Kc6 {[%emt 0:00:17]} 53. Kf6 {[%emt 0:01:25]} Kd6 {[%emt 0:00:06]} 54. Kg6 {[%emt 0:00:22]} Ke6 {[%emt 0:00:08]} 55. Kg5 {[%emt 0:00:08]} Ke5 {[%emt 0:00:06]} 56. Kxh5 {[%emt 0:00:16]} Kf5 {[%emt 0:00:05]} 57. Kh6 {[%emt 0:00:05]} Kf6 {[%emt 0:00:12]} 58. h5 {[%emt 0:00:10]} Kf7 {[%emt 0:00:15]} 59. Kh7 {[%emt 0:00:05]} Kf8 {[%emt 0:00:11]} 60. Kg6 {[%emt 0:00:20]} Kg8 {[%emt 0:00:04]} 61. Kh6 {[%emt 0:00:21]} Kh8 {[%emt 0:00:08]} 62. Kg6 {[%emt 0:00:13]} Kg8 {[%emt 0:00:04]} 63. Kf6 {[%emt 0:00:05]} Kh7 {[%emt 0:00:10]} 64. Kg5 {[%emt 0:00:12]} Kg7 {[%emt 0:00:12]} 65. h6+ {[%emt 0:00:08]} Kh7 {[%emt 0:00:05]} 66. Kh5 {[%emt 0:00:08]} Kh8 {[%emt 0:00:08]} 67. Kg6 {[%emt 0:00:06]} Kg8 {[%emt 0:00:04]} 68. Kf6 {[%emt 0:00:05]} Kh7 {[%emt 0:00:10]} 69. Kg5 {[%emt 0:01:04]} Kh8 {[%emt 0:00:05]} 70. Kg6 {[%emt 0:00:06]} Kg8 {[%emt 0:00:03]} 71. h7+ {[%emt 0:00:07]} Kh8 {[%emt 0:00:03]} 72. Kh6 {[%emt 0:00:37]} 1/2-1/2

[Event "FIDE WCCC Girls-10 2024"]
[Site "Montesilvano"]
[Date "2024.11.24"]
[Round "9.14"]
[White "Pham, Nhu Y"]
[Black "Ahmadli, Mehriban"]
[Result "1-0"]
[Annotator "RC"]
[ECO "E61"]
[WhiteElo "1914"]
[BlackElo "1624"]
[PlyCount "187"]
[EventDate "2024.11.18"]
[EventType "swiss"]
[EventCountry "ITA"]
[SourceTitle "playchess.com"]
[Source "ChessBase"]
[SourceQuality "1"]
[TimeControl "5400+30"]

1. d4 {[%emt 0:00:05]} Nf6 {[%emt 0:00:08]} 2. Nf3 {[%emt 0:00:44]} g6 {[%emt 0:00:09]} 3. c4 {[%emt 0:00:05]} Bg7 {[%emt 0:00:06]} 4. Nc3 {[%emt 0:00:13]} O-O {[%emt 0:00:07]} 5. Bf4 {[%emt 0:00:10]} d6 {[%emt 0:00:09]} 6. h3 {[%emt 0:00:08]} c5 {[%emt 0:01:51]} 7. d5 {[%emt 0:00:34]} a6 {[%emt 0:04:15]} 8. e3 {[%emt 0:03:41]} Qa5 {[%emt 0:02:11]} 9. Qb3 {[%emt 0:06:08]} Ne4 {[%emt 0:07:12]} 10. Rc1 {[%emt 0:02:38]} Nd7 {[%emt 0:00:13]} 11. Be2 {[%emt 0:01:14]} Ndf6 {[%emt 0:01:08]} 12. O-O {[%emt 0:07:44]} Nxc3 {[%emt 0:01:15]} 13. Qxc3 {[%emt 0:00:15]} Qxc3 {[%emt 0:02:29]} 14. Rxc3 {[%emt 0:00:19]} b5 {[%emt 0:01:40]} 15. a3 {[%emt 0:10:58]} bxc4 {[%emt 0:01:55]} 16. Bxc4 {[%emt 0:00:50]} Rb8 {[%emt 0:04:54]} 17. Rc2 {[%emt 0:13:26]} Rd8 {[%emt 0:06:56]} 18. g4 {[%emt 0:07:02]} h6 {[%emt 0:04:19]} 19. Nd2 {[%emt 0:06:30]} g5 {[%emt 0:04:23]} 20. Bg3 {[%emt 0:00:29]} h5 {[%emt 0:10:12]} 21. f3 {[%emt 0:03:08]} e6 {[%emt 0:06:30]} 22. e4 {[%emt 0:04:03]} exd5 {[%emt 0:00:29]} 23. exd5 {[%emt 0:01:19]} h4 {[%emt 0:03:51]} 24. Bh2 {[%emt 0:02:22]} Bb7 {[%emt 0:02:15]} 25. Ne4 {[%emt 0:15:15]} Nxe4 {[%emt 0:09:42]} 26. fxe4 {[%emt 0:00:08]} Bc8 {[%emt 0:01:04]} 27. b3 {[%emt 0:01:36]} Rb6 {[%emt 0:01:00]} 28. Kg2 {[%emt 0:01:59]} Bd4 {[%emt 0:04:21]} 29. Rf3 {[%emt 0:06:41]} Re8 {[%emt 0:00:36]} 30. Re2 {[%emt 0:00:43]} a5 {[%emt 0:01:20]} 31. Bg1 {[%emt 0:02:20]} Bxg1 {[%emt 0:02:56]} 32. Kxg1 Bd7 33. Rf6 Re7 {[%emt 0:12:01]} 34. e5 {[%emt 0:02:18]} Kg7 {[%emt 0:01:55]} 35. Ref2 {[%emt 0:00:34]} Be8 {[%emt 0:02:01]} 36. R2f5 {[%emt 0:01:00]} a4 {[%emt 0:01:49]} 37. Rxg5+ {[%emt 0:00:09]} Kf8 {[%emt 0:00:26]} 38. exd6 {[%emt 0:01:29]} Rd7 {[%emt 0:00:58]} 39. Rh6 {[%emt 0:00:48]} Rdxd6 {[%emt 0:00:34]} 40. Rxd6 {[%emt 0:00:44]} Rxd6 {[%emt 0:00:01]} 41. bxa4 {[%emt 0:00:13]} Bxa4 {[%emt 0:00:02]} 42. Rh5 {[%emt 0:00:08]} Bc2 {[%emt 0:00:36]} 43. Rxh4 {[%emt 0:00:11]} Be4 {[%emt 0:00:19]} 44. Rh5 {[%emt 0:00:08]} Kg7 {[%emt 0:00:10]} 45. Re5 {[%emt 0:00:10]} Bc2 {[%emt 0:00:06]} 46. Re8 {[%emt 0:00:53]} Kg6 {[%emt 0:00:55]} 47. Rc8 {[%emt 0:00:25]} Ba4 {[%emt 0:00:48]} 48. Rxc5 {[%emt 0:00:09]} Kf6 {[%emt 0:00:24]} 49. Rc7 {[%emt 0:00:41]} Bd7 {[%emt 0:00:41]} 50. Kf2 {[%emt 0:00:29]} Ke5 {[%emt 0:00:23]} 51. Kg3 {[%emt 0:00:39]} f5 {[%emt 0:00:20]} 52. gxf5 {[%emt 0:00:15]} Kxf5 {[%emt 0:00:02]} 53. h4 {[%emt 0:00:33]} Rg6+ {[%emt 0:00:03]} 54. Kf3 {[%emt 0:00:07]} Rd6 {[%emt 0:00:26]} 55. Bb3 {[%emt 0:00:44]} Ke5 {[%emt 0:00:25]} 56. Rb7 {[%emt 0:02:08]} Rf6+ {[%emt 0:00:31]} 57. Ke3 {[%emt 0:00:11]} Bg4 {[%emt 0:00:49]} 58. Rb4 {[%emt 0:00:50]} Rf3+ {[%emt 0:00:35]} 59. Kd2 {[%emt 0:00:16]} Rf2+ {[%emt 0:00:15]} 60. Ke1 {[%emt 0:00:22]} Re2+ {[%emt 0:00:25]} 61. Kf1 {[%emt 0:00:20]} Bh5 {[%emt 0:00:19]} 62. Bd1 {[%emt 0:00:17]} Ra2 {[%emt 0:00:30]} 63. Bxh5 {[%emt 0:00:15]} Rxa3 {[%emt 0:00:07]} 64. Be2 {[%emt 0:01:15]} Kxd5 {[%emt 0:00:19]} 65. h5 {[%emt 0:00:21]} Rh3 {[%emt 0:00:16]} 66. Kg2 {[%emt 0:00:05]} Re3 {[%emt 0:00:06]} 67. Bf3+ {[%emt 0:00:07]} Kd6 {[%emt 0:00:14]} 68. Rh4 {[%emt 0:00:08]} Re8 {[%emt 0:00:37]} 69. Kg3 {[%emt 0:00:34]} Ke7 {[%emt 0:00:35]} 70. Be4 {[%emt 0:00:21]} Rh8 {[%emt 0:00:22]} 71. h6 {[%emt 0:00:29]} Kf6 {[%emt 0:01:13]} 72. Kf4 {[%emt 0:00:22]} Rg8 {[%emt 0:01:12]} 73. Rh5 {[%emt 0:00:37]} Rh8 {[%emt 0:00:37]} 74. Rf5+ {[%emt 0:00:38]} Ke7 {[%emt 0:00:11]} 75. Kg5 {[%emt 0:00:25]} Rg8+ {[%emt 0:00:03]} 76. Kh5 {[%emt 0:00:14]} Rh8 {[%emt 0:00:26]} 77. Kg6 {[%emt 0:00:18]} Rg8+ {[%emt 0:00:08]} 78. Kh7 {[%emt 0:00:07]} Rg4 {[%emt 0:00:10]} 79. Bf3 {[%emt 0:00:09]} Rg3 {[%emt 0:00:13]} 80. Kh8 {[%emt 0:00:14]} Ke6 {[%emt 0:00:55]} 81. Rf4 {[%emt 0:00:21]} Ke5 {[%emt 0:00:21]} 82. Rf8 {[%emt 0:00:14]} Ke6 {[%emt 0:00:07]} 83. h7 {[%emt 0:00:09]} Ke7 {[%emt 0:00:38]} 84. Rf4 {[%emt 0:00:09]} Rg6 {[%emt 0:02:12]} 85. Rg4 {[%emt 0:00:50]} Rf6 {[%emt 0:00:54]} 86. Kg7 {[%emt 0:00:13]} Rf7+ {[%emt 0:00:01]} 87. Kg6 {[%emt 0:00:08]} Rf6+ {[%emt 0:00:02]} 88. Kg5 {[%emt 0:00:11]} Rf8 {[%emt 0:00:06]} 89. Rh4 {[%emt 0:00:25]} Rh8 {[%emt 0:00:08]} 90. Kg6 {[%emt 0:00:05]} Kf8 {[%emt 0:00:04]} 91. Kf6 {[%emt 0:00:14]} Ke8 {[%emt 0:00:46]} 92. Kg7 {[%emt 0:00:18]} Ke7 {[%emt 0:00:08]} 93. Kxh8 {[%emt 0:00:10]} Kf8 {[%emt 0:00:01]} 94. Rf4+ {[%emt 0:00:07]} 1-0

[Event "FIDE WCCC Girls-10 2024"]
[Site "Montesilvano"]
[Date "2024.11.24"]
[Round "9.15"]
[White "Nguyen, Lam Vy Le"]
[Black "Mohamed Ahmed, Ghidaa"]
[Result "1/2-1/2"]
[Annotator "NA RC"]
[ECO "C41"]
[WhiteElo "1728"]
[BlackElo "1638"]
[PlyCount "64"]
[EventDate "2024.11.18"]
[EventType "swiss"]
[EventCountry "ITA"]
[SourceTitle "playchess.com"]
[Source "ChessBase"]
[SourceQuality "1"]
[TimeControl "5400+30"]

1. e4 {[%emt 0:00:04]} e5 {[%emt 0:00:11]} 2. Nf3 {[%emt 0:00:18]} d6 {[%emt 0:00:12]} 3. d4 {[%emt 0:00:07]} exd4 {[%emt 0:00:06]} 4. Nxd4 {[%emt 0:00:17]} Nf6 {[%emt 0:00:30]} 5. Nc3 {[%emt 0:00:08]} Be7 {[%emt 0:00:05]} 6. g3 {[%emt 0:00:15]} h6 {[%emt 0:01:07]} 7. Bg2 {[%emt 0:00:14]} O-O {[%emt 0:00:10]} 8. O-O {[%emt 0:00:14]} Re8 {[%emt 0:00:21]} 9. h3 {[%emt 0:00:50]} Nbd7 {[%emt 0:01:29]} 10. Bf4 {[%emt 0:01:50]} Nf8 {[%emt 0:02:41]} 11. Qd2 {[%emt 0:01:36]} Ng6 {[%emt 0:00:33]} 12. Rad1 {[%emt 0:03:04]} Nxf4 {[%emt 0:00:59]} 13. Qxf4 {[%emt 0:00:07]} Bf8 {[%emt 0:05:27]} 14. Rfe1 {[%emt 0:04:32]} Nd7 {[%emt 0:21:56]} 15. Nf3 {[%emt 0:07:43]} Qf6 {[%emt 0:02:03]} 16. Nd5 {[%emt 0:04:28]} Qd8 {[%emt 0:04:27]} 17. g4 {[%emt 0:07:50]} c6 {[%emt 0:03:07]} 18. Nc3 {[%emt 0:04:23]} Qf6 {[%emt 0:00:33]} 19. Qg3 {[%emt 0:06:40]} Ne5 {[%emt 0:01:28]} 20. Nxe5 {[%emt 0:04:28]} Qxe5 {[%emt 0:02:52]} 21. Qxe5 {[%emt 0:05:36]} dxe5 {[%emt 0:03:06]} 22. Rd3 {[%emt 0:02:02]} Be6 {[%emt 0:02:12]} 23. Red1 {[%emt 0:00:56]} Be7 {[%emt 0:04:08]} 24. Kh2 {[%emt 0:03:38]} Rad8 {[%emt 0:00:52]} 25. Kg3 {[%emt 0:01:50]} Rxd3+ {[%emt 0:01:31]} 26. Rxd3 {[%emt 0:00:13]} Rd8 {[%emt 0:00:42]} 27. Rxd8+ {[%emt 0:01:49]} Bxd8 {[%emt 0:00:06]} 28. f4 {[%emt 0:02:46]} exf4+ {[%emt 0:01:37]} 29. Kxf4 {[%emt 0:00:08]} Bc7+ {[%emt 0:03:16]} 30. Ke3 {[%emt 0:01:10]} Kf8 {[%emt 0:01:44]} 31. Bf1 {[%emt 0:01:16]} Ke7 {[%emt 0:01:27]} 32. Na4 {[%emt 0:35:58]} Bh2 {[%emt 0:03:18]} 1/2-1/2

[Event "FIDE WCCC Girls-10 2024"]
[Site "Montesilvano"]
[Date "2024.11.24"]
[Round "9.16"]
[White "Tran Hoang Bao An"]
[Black "Li, Wan Qin"]
[Result "0-1"]
[Annotator "NA RC"]
[ECO "E11"]
[WhiteElo "1714"]
[BlackElo "1628"]
[PlyCount "68"]
[EventDate "2024.11.18"]
[EventType "swiss"]
[EventCountry "ITA"]
[SourceTitle "playchess.com"]
[Source "ChessBase"]
[SourceQuality "1"]
[TimeControl "5400+30"]

1. d4 {[%emt 0:00:08]} Nf6 {[%emt 0:00:08]} 2. c4 {[%emt 0:00:51]} e6 {[%emt 0:00:09]} 3. Nf3 {[%emt 0:01:16]} Bb4+ {[%emt 0:00:24]} 4. Bd2 {[%emt 0:01:19]} Bxd2+ {[%emt 0:00:13]} 5. Nbxd2 {[%emt 0:00:50]} d5 {[%emt 0:00:39]} 6. g3 {[%emt 0:02:41]} O-O 7. Bg2 {[%emt 0:03:01]} Re8 {[%emt 0:03:49]} 8. O-O {[%emt 0:01:42]} c6 {[%emt 0:04:04]} 9. Qc2 {[%emt 0:02:46]} b6 {[%emt 0:08:04]} 10. e4 {[%emt 0:06:24]} dxe4 {[%emt 0:03:24]} 11. Nxe4 {[%emt 0:00:15]} Bb7 {[%emt 0:00:20]} 12. c5 {[%emt 0:03:17]} Nxe4 {[%emt 0:03:51]} 13. Qxe4 {[%emt 0:00:43]} bxc5 {[%emt 0:04:41]} 14. dxc5 {[%emt 0:00:48]} Qe7 {[%emt 0:01:31]} 15. b4 {[%emt 0:02:54]} a5 {[%emt 0:06:34]} 16. a3 {[%emt 0:02:25]} Nd7 {[%emt 0:07:34]} 17. Nd4 Rac8 {[%emt 0:10:27]} 18. Rfe1 {[%emt 0:15:56]} Qf6 {[%emt 0:07:52]} 19. Nb5 {[%emt 0:08:31]} axb4 {[%emt 0:09:16]} 20. Nd6 {[%emt 0:00:11]} Nxc5 {[%emt 0:01:13]} 21. Qxb4 {[%emt 0:01:03]} Nd3 {[%emt 0:00:29]} 22. Nxe8 {[%emt 0:00:40]} Rxe8 {[%emt 0:00:16]} 23. Qxb7 {[%emt 0:00:37]} Qxf2+ {[%emt 0:00:10]} 24. Kh1 {[%emt 0:00:50]} Nxe1 {[%emt 0:00:23]} 25. Qxc6 {[%emt 0:01:57]} Rd8 {[%emt 0:01:20]} 26. Qe4 {[%emt 0:00:55]} Nd3 {[%emt 0:01:20]} 27. Rf1 {[%emt 0:08:02]} Qxf1+ {[%emt 0:00:08]} 28. Bxf1 {[%emt 0:00:13]} Nf2+ {[%emt 0:00:05]} 29. Kg1 {[%emt 0:02:31]} Nxe4 {[%emt 0:00:05]} 30. a4 {[%emt 0:00:06]} Ra8 {[%emt 0:00:10]} 31. a5 {[%emt 0:33:08]} Rxa5 {[%emt 0:00:06]} 32. Bd3 {[%emt 0:00:00]} Nc5 {[%emt 0:00:07]} 33. Bc2 {[%emt 0:00:00]} Ra1+ {[%emt 0:00:05]} 34. Kg2 {[%emt 0:00:00]} Ra2 {[%emt 0:00:05]} 0-1

[Event "FIDE WCCC Girls-10 2024"]
[Site "Montesilvano"]
[Date "2024.11.24"]
[Round "9.17"]
[White "Artemenko, Isabella"]
[Black "Bhavanya Panchumarthi"]
[Result "0-1"]
[Annotator "NA RC"]
[ECO "B25"]
[WhiteElo "1637"]
[BlackElo "1703"]
[PlyCount "94"]
[EventDate "2024.11.18"]
[EventType "swiss"]
[EventCountry "ITA"]
[SourceTitle "playchess.com"]
[Source "ChessBase"]
[SourceQuality "1"]
[TimeControl "5400+30"]

1. e4 {[%emt 0:00:01]} c5 {[%emt 0:00:14]} 2. Nc3 {[%emt 0:00:24]} Nc6 {[%emt 0:00:19]} 3. g3 {[%emt 0:00:14]} g6 {[%emt 0:00:14]} 4. Bg2 {[%emt 0:00:10]} Bg7 {[%emt 0:00:07]} 5. d3 {[%emt 0:00:15]} d6 {[%emt 0:00:17]} 6. f4 {[%emt 0:00:17]} Nf6 {[%emt 0:00:12]} 7. Nf3 {[%emt 0:00:18]} O-O {[%emt 0:00:53]} 8. O-O {[%emt 0:00:29]} Rb8 {[%emt 0:00:49]} 9. h3 {[%emt 0:01:17]} b5 {[%emt 0:00:50]} 10. g4 {[%emt 0:00:19]} b4 {[%emt 0:01:57]} 11. Ne2 {[%emt 0:00:32]} Bb7 {[%emt 0:02:51]} 12. f5 {[%emt 0:01:37]} a5 {[%emt 0:02:31]} 13. Qe1 {[%emt 0:04:57]} a4 {[%emt 0:12:26]} 14. Rb1 {[%emt 0:00:36]} Re8 {[%emt 0:02:36]} 15. Qh4 {[%emt 0:06:24]} Qc8 {[%emt 0:04:42]} 16. Bh6 {[%emt 0:07:07]} Bh8 {[%emt 0:08:34]} 17. Bd2 {[%emt 0:07:58]} Ba6 {[%emt 0:06:33]} 18. Rf2 {[%emt 0:09:45]} c4 {[%emt 0:15:19]} 19. fxg6 {[%emt 0:18:56]} fxg6 {[%emt 0:06:59]} 20. Ng5 {[%emt 0:00:43]} Qd7 {[%emt 0:00:21]} 21. d4 {[%emt 0:31:32]} e5 {[%emt 0:09:35]} 22. d5 {[%emt 0:00:41]} Nd8 {[%emt 0:05:14]} 23. Rbf1 {[%emt 0:01:33]} Rf8 {[%emt 0:01:21]} 24. c3 {[%emt 0:05:25]} b3 {[%emt 0:00:59]} 25. a3 {[%emt 0:00:28]} Bg7 {[%emt 0:01:04]} 26. Ne6 {[%emt 0:00:56]} Nxe6 {[%emt 0:03:08]} 27. dxe6 {[%emt 0:00:04]} Qxe6 {[%emt 0:00:14]} 28. Qg3 {[%emt 0:00:36]} Bb7 {[%emt 0:01:27]} 29. Qe3 {[%emt 0:00:26]} Nd7 {[%emt 0:03:41]} 30. Rxf8+ {[%emt 0:00:18]} Rxf8 {[%emt 0:01:37]} 31. Rxf8+ {[%emt 0:00:18]} Bxf8 {[%emt 0:00:08]} 32. Qa7 {[%emt 0:00:07]} Nc5 {[%emt 0:01:32]} 33. Nc1 {[%emt 0:01:32]} Bxe4 {[%emt 0:02:21]} 34. Be3 {[%emt 0:00:33]} Bxg2 {[%emt 0:00:53]} 35. Kxg2 {[%emt 0:00:05]} Qd5+ 36. Kg3 {[%emt 0:00:47]} Ne4+ {[%emt 0:01:33]} 37. Kf3 {[%emt 0:00:25]} Nxc3+ {[%emt 0:01:24]} 38. Kf2 {[%emt 0:00:13]} Nd1+ {[%emt 0:01:12]} 39. Ke2 {[%emt 0:00:51]} Nxb2 {[%emt 0:01:45]} 40. Qb8 {[%emt 0:00:31]} Qg2+ 41. Bf2 {[%emt 0:00:15]} Nd3 {[%emt 0:00:51]} 42. Nxd3 {[%emt 0:00:24]} cxd3+ {[%emt 0:00:05]} 43. Ke1 {[%emt 0:00:18]} d2+ {[%emt 0:00:26]} 44. Ke2 {[%emt 0:01:11]} Qd5 {[%emt 0:01:00]} 45. Kd1 {[%emt 0:00:31]} Qf3+ {[%emt 0:00:39]} 46. Kxd2 {[%emt 0:00:07]} Qxf2+ {[%emt 0:00:04]} 47. Kc1 {[%emt 0:00:25]} Qc2# {[%emt 0:00:30]} 0-1

[Event "FIDE WCCC Girls-10 2024"]
[Site "Montesilvano"]
[Date "2024.11.24"]
[Round "9.18"]
[White "Blakhina Viktoryia"]
[Black "Tu, Tiffany"]
[Result "1/2-1/2"]
[Annotator "NA RC"]
[ECO "C45"]
[WhiteElo "1436"]
[BlackElo "1687"]
[PlyCount "155"]
[EventDate "2024.11.18"]
[EventType "swiss"]
[EventCountry "ITA"]
[SourceTitle "playchess.com"]
[Source "ChessBase"]
[SourceQuality "1"]
[TimeControl "5400+30"]

1. e4 {[%emt 0:00:10]} e5 {[%emt 0:00:13]} 2. Nf3 {[%emt 0:00:06]} Nc6 {[%emt 0:00:06]} 3. d4 {[%emt 0:00:09]} exd4 {[%emt 0:00:05]} 4. Nxd4 {[%emt 0:00:05]} Nf6 {[%emt 0:00:10]} 5. Nxc6 {[%emt 0:00:07]} bxc6 {[%emt 0:00:05]} 6. Bd3 {[%emt 0:00:10]} d5 {[%emt 0:00:07]} 7. e5 {[%emt 0:01:44]} Ng4 {[%emt 0:00:35]} 8. O-O {[%emt 0:01:26]} Bc5 {[%emt 0:07:43]} 9. Bf4 {[%emt 0:07:44]} g5 {[%emt 0:21:02]} 10. Bg3 {[%emt 0:11:50]} h5 {[%emt 0:05:30]} 11. h3 {[%emt 0:05:54]} h4 {[%emt 0:02:19]} 12. Bh2 {[%emt 0:00:13]} Nxh2 {[%emt 0:03:57]} 13. Kxh2 {[%emt 0:01:08]} g4 {[%emt 0:01:02]} 14. hxg4 {[%emt 0:08:33]} Qg5 {[%emt 0:02:11]} 15. f4 {[%emt 0:04:31]} Qxg4 {[%emt 0:11:52]} 16. Qxg4 {[%emt 0:00:12]} Bxg4 {[%emt 0:00:11]} 17. Nd2 {[%emt 0:07:18]} h3 {[%emt 0:04:01]} 18. g3 {[%emt 0:19:28]} f6 {[%emt 0:09:15]} 19. Nb3 {[%emt 0:04:18]} Bb6 {[%emt 0:00:55]} 20. Rae1 {[%emt 0:02:44]} Kd7 {[%emt 0:03:14]} 21. exf6 {[%emt 0:08:18]} Rhf8 {[%emt 0:03:25]} 22. Re7+ {[%emt 0:02:25]} Kd6 {[%emt 0:01:18]} 23. Rg7 {[%emt 0:01:49]} Be6 {[%emt 0:06:38]} 24. f5 {[%emt 0:01:12]} Bd7 {[%emt 0:01:52]} 25. f7 {[%emt 0:02:46]} Ke7 {[%emt 0:05:27]} 26. f6+ {[%emt 0:00:18]} Kd6 {[%emt 0:00:51]} 27. g4 {[%emt 0:01:21]} Be6 {[%emt 0:01:02]} 28. Bg6 {[%emt 0:01:16]} Bxg4 {[%emt 0:01:12]} 29. Rf4 {[%emt 0:01:41]} Be6 {[%emt 0:00:59]} 30. Rf3 {[%emt 0:03:21]} Rad8 {[%emt 0:01:18]} 31. Nc1 {[%emt 0:00:47]} Rd7 {[%emt 0:00:54]} 32. Rg8 {[%emt 0:02:06]} Rdd8 {[%emt 0:00:39]} 33. Nd3 {[%emt 0:01:11]} Rxg8 {[%emt 0:02:09]} 34. fxg8=Q Rxg8 {[%emt 0:00:00]} 35. Nf4 {[%emt 0:00:52]} Rf8 {[%emt 0:00:26]} 36. Nxe6 {[%emt 0:00:20]} Kxe6 {[%emt 0:00:04]} 37. f7 {[%emt 0:00:12]} Bd4 {[%emt 0:00:42]} 38. b3 {[%emt 0:00:11]} a5 {[%emt 0:00:53]} 39. Kxh3 {[%emt 0:00:06]} Bg7 {[%emt 0:00:59]} 40. Kg2 {[%emt 0:00:38]} Ke7 {[%emt 0:00:30]} 41. Kf2 {[%emt 0:00:38]} c5 {[%emt 0:00:48]} 42. Ke3 {[%emt 0:00:33]} c6 {[%emt 0:00:33]} 43. Kd3 {[%emt 0:01:10]} Kd6 {[%emt 0:01:31]} 44. Re3 {[%emt 0:00:43]} Be5 {[%emt 0:00:55]} 45. Rf3 {[%emt 0:00:25]} Ke6 {[%emt 0:01:15]} 46. Ke3 {[%emt 0:00:41]} Bd4+ {[%emt 0:00:21]} 47. Kd3 {[%emt 0:00:21]} Be5 {[%emt 0:00:10]} 48. c4 {[%emt 0:00:32]} Kd6 {[%emt 0:00:16]} 49. Ke3 {[%emt 0:00:42]} Bd4+ {[%emt 0:00:12]} 50. Kd3 {[%emt 0:00:23]} Be5 {[%emt 0:00:52]} 51. Bh5 {[%emt 0:00:28]} Ke6 {[%emt 0:01:08]} 52. Rf2 {[%emt 0:00:27]} Bd6 {[%emt 0:00:22]} 53. Rg2 {[%emt 0:00:39]} Rh8 {[%emt 0:01:28]} 54. Bg6 {[%emt 0:00:34]} Rf8 {[%emt 0:00:24]} 55. Kc3 {[%emt 0:00:28]} Be5+ {[%emt 0:00:28]} 56. Kd3 {[%emt 0:00:22]} Bd6 {[%emt 0:00:13]} 57. Ke3 {[%emt 0:00:28]} Rh8 {[%emt 0:00:26]} 58. Rf2 {[%emt 0:00:13]} Rh3+ {[%emt 0:00:24]} 59. Ke2 {[%emt 0:00:34]} Rh8 {[%emt 0:00:14]} 60. Ke3 {[%emt 0:00:47]} Rh3+ {[%emt 0:00:39]} 61. Rf3 {[%emt 0:00:36]} Rh8 {[%emt 0:00:48]} 62. Kd3 {[%emt 0:00:22]} Rf8 {[%emt 0:00:21]} 63. Bf5+ {[%emt 0:00:38]} Kxf7 {[%emt 0:01:10]} 64. Bd7+ {[%emt 0:00:07]} Ke7 {[%emt 0:00:16]} 65. Rxf8 {[%emt 0:00:05]} Kxf8 {[%emt 0:00:01]} 66. Bxc6 {[%emt 0:00:16]} d4 {[%emt 0:00:48]} 67. Be4 {[%emt 0:00:24]} Ke7 {[%emt 0:00:15]} 68. Bd5 {[%emt 0:00:50]} Kd7 {[%emt 0:00:59]} 69. a3 {[%emt 0:00:39]} Kc7 {[%emt 0:00:29]} 70. a4 {[%emt 0:00:20]} Kd7 {[%emt 0:00:19]} 71. Bf3 {[%emt 0:00:29]} Ke6 {[%emt 0:00:28]} 72. Ke4 {[%emt 0:00:35]} Be7 {[%emt 0:00:53]} 73. Bg4+ {[%emt 0:00:44]} Kd6 {[%emt 0:00:10]} 74. Bf5 {[%emt 0:00:17]} Bg5 {[%emt 0:00:20]} 75. Bg4 {[%emt 0:00:24]} Bf6 {[%emt 0:00:45]} 76. Bf5 {[%emt 0:00:13]} Bg5 {[%emt 0:00:10]} 77. Bg4 {[%emt 0:00:06]} Bf6 {[%emt 0:00:07]} 78. Bf5 {[%emt 0:00:05]} 1/2-1/2